Cogmind - Beta 10.1 @@@ ROGUE MODE // 2020.10.23 @ 19:41:39 Player: W_W Result: Destroyed by S-10 Pest with Light Assault Rifle Performance ------------- Evolutions (0) 0 Regions Visited (1) 200 Robots Destroyed (21) 105 Value Destroyed (244) 244 Prototype IDs (0) 0 Alien Tech Used (0) 0 Bonus (0) 0 TOTAL SCORE: 549 Bonus ------- None Cogmind --------- Core Integrity 0/250 Matter 244/300 Energy 100/100 System Corruption 1% Temperature Cool (12) Movement Core (100) Ox1 Location -10/Materials Parts ------- > --- POWER (1) -------- (None) > --- PROPULSION (2) --- (None) > --- UTILITY (2) ------ Small Storage Unit > --- WEAPON (2) ------- (None) > --- INVENTORY (6) ---- Light Ion Engine Light Ion Engine Medium Matter Pod (100) High-capacity Matter Pod (51) Mining Laser Peak State ------------ > --- POWER ------------ Ion Engine > --- PROPULSION ------- Light Treads Light Treads > --- UTILITY ---------- Small Storage Unit > --- WEAPON ----------- EM Pulse Gun Assault Rifle > --- INVENTORY -------- (None) [Rating: 6] Favorites ----------- Power Ion Engine Engine Ion Engine Propulsion Light Treads Treads Light Treads Utility Small Storage Unit Storage Small Storage Unit Weapon Assault Rifle Energy Gun EM Pulse Gun Ballistic Gun Assault Rifle Build | -11 -10 ------- Run | Scr Mat Slots Evolved . | . . Power . | . . Propulsion . | . . Utility . | . . Weapon . | . . Parts Attached 7 | 6 1 Power 1 | 1 . Engine 1 | 1 . Core . | . . Reactor . | . . Propulsion 2 | 2 . Treads 2 | 2 . Leg . | . . Wheel . | . . Hover . | . . Flight . | . . Utility 1 | 1 . Device . | . . Storage 1 | 1 . Processor . | . . Hackware . | . . Protection . | . . Artifact . | . . Weapon 3 | 2 1 Energy Gun 1 | 1 . Energy Cannon . | . . Ballistic Gun 2 | 1 1 Ballistic Cannon . | . . Launcher . | . . Special Weapon . | . . Impact Weapon . | . . Slashing Weapon . | . . Piercing Weapon . | . . Special Melee Weapon . | . . Unidentified Prototypes . | . . Parts Lost 6 | . 6 Power 1 | . 1 Propulsion 2 | . 2 Utility . | . . Weapon 3 | . 3 Highest Loss Streak 6 | . 6 Average Slot Usage (%) 77 | . 77 Engine 12 | . 12 Treads 25 | . 25 Storage 14 | . 14 Energy Gun 10 | . 10 Ballistic Gun 14 | . 14 Naked Turns . | . . Heaviest Build 13 | 13 13 Greatest Support 40 | 40 40 Greatest Overweight (x) 4 | 4 . Average Overweight (x) . | . . Largest Inventory Capacity 6 | 6 6 Average Capacity 5 | 5 6 Most Carried 6 | 6 6 Average Carried 3 | 2 5 Final Capacity 6 | 6 6 Final Carried 6 | 6 5 Class Distribution -------------------- 100% | Mutant Dominant Class ---------------- Mutant | -10/Materials Resources | -11 -10 ----------- Run | Scr Mat Matter Collected 566 | 500 66 Remotely . | . . Salvage Created 621 | 375 246 Parts 44 | 30 14 Haulers Intercepted . | . . Recyclers Shooed 1 | 1 . Parts Field Recycled . | . . Retrieved Matter . | . . Parts Self-Destructed . | . . Prevented . | . . Kills | -11 -10 ------- Run | Scr Mat Combat Hostiles Destroyed 4 | . 4 Guns 4 | . 4 Classes Destroyed 6 | 3 3 Worker 5 | 4 1 Builder 1 | . 1 Tunneler 9 | 9 . Recycler 1 | 1 . Watcher 1 | . 1 Grunt 4 | . 4 Best Kill Streak 5 | 5 3 Combat Bots Only 2 | . 2 Max Kills in Single Turn 1 | 1 1 Gunslinging . | . . Exploded . | . . Melee . | . . Uniques/NPCs Destroyed . | . . Combat | -11 -10 -------- Run | Scr Mat Damage Taken 917 | . 917 Core 251 | . 251 Absorbed by Shields . | . . Core Remaining (%) 100 | 100 . Volleys Fired 76 | 45 31 Largest 2 | 2 2 Hottest 60 | 60 60 Shots Fired 148 | 90 58 Gun 148 | 90 58 Cannon . | . . Launcher . | . . Special . | . . Kinetic 82 | 45 37 Thermal . | . . Explosive . | . . Electromagnetic 66 | 45 21 Robot Hit Streak 11 | 11 6 Robot Miss Streak 3 | 3 3 Penetration Max . | . . Secondary Targets 1 | . 1 Max Gunslinging Chain 1 | . 1 Shots Hit Robots 79 | 43 36 Core Hits 29 | 15 14 Critical Hits . | . . Critical Kills . | . . Critical Parts Destroyed . | . . Melee Attacks . | . . Impact . | . . Slashing . | . . Piercing . | . . Sneak Attacks . | . . Combat Hostiles . | . . Follow-up Attacks . | . . Damage Inflicted 1083 | 510 573 Guns 1000 | 427 573 Cannons . | . . Explosions 83 | 83 . Melee . | . . Ramming . | . . Kinetic 419 | 123 296 Thermal 83 | 83 . Explosive . | . . Electromagnetic 581 | 304 277 Impact . | . . Slashing . | . . Piercing . | . . Highest Corruption 1 | . 1 Average Corruption 1 | . 1 Corruption Purged . | . . Effects 1 | . 1 Targeting Errors 1 | . 1 Overload Shots . | . . Overflow Damage . | . . Projectiles . | . . Explosions . | . . Melee . | . . Knockbacks . | . . Impact . | . . Kinetic . | . . Secondary . | . . Self-Inflicted Damage . | . . Shots . | . . Rammed . | . . Targets Rammed . | . . Kicked . | . . Crushed . | . . Highest Temperature 158 | . 158 Average Temperature 73 | . 73 Received Heat Transfer 408 | . 408 Siege Activations . | . . Robots Corrupted . | . . Combat Hostiles . | . . Parts Fried 7 | 3 4 Impact Corruptions . | . . Robots Melted . | . . Combat Hostiles . | . . Parts Melted . | . . Heat Transferred 100 | 100 . Parts Sabotaged . | . . Parts Stolen . | . . Parts Stripped . | . . Power Chain Reactions 2 | 2 . Missiles Intercepted . | . . Alert | -11 -10 ------- Run | Scr Mat Peak Influence 107 | 70 107 Initial . | . . Average 34 | 35 33 Maximum Alert Level . | . . Low Security (%) 100 | 100 100 Level 1 . | . . Level 2 . | . . Level 3 . | . . Level 4 . | . . Level 5 . | . . High Security . | . . Max Security . | . . Squads Dispatched 4 | . 4 Investigation 1 | . 1 Extermination . | . . Reinforcement 3 | . 3 Assault . | . . Garrison . | . . Intercept . | . . Construction Impeded . | . . Haulers Reinforced . | . . Stealth | -11 -10 --------- Run | Scr Mat Distress Signals 2 | . 2 Communications Jammed . | . . Distress Signals . | . . Times Spotted 17 | . 17 Peak Tracking Total 12 | . 12 Tactical Retreats . | . . Traps | -11 -10 ------- Run | Scr Mat Traps Triggered 2 | . 2 Indirectly . | . . Trap Hack Attempts . | . . Triggered . | . . Disarmed . | . . Reprogrammed . | . . Reused . | . . Traps Extracted . | . . Installed . | . . Triggered . | . . Machines | -11 -10 ---------- Run | Scr Mat Machines Disabled . | . . Max in Single Turn . | . . Machines Sabotaged . | . . Garrisons Compromised . | . . Overloaded Fab Kills . | . . Fab Network Shutdowns . | . . Hacking | -11 -10 --------- Run | Scr Mat Machines Accessed . | . . Terminals . | . . Fabricators . | . . Repair Stations . | . . Recycling Units . | . . Scanalyzers . | . . Garrison Access . | . . Total Hacks . | . . Successful . | . . Failed . | . . Catastrophic . | . . Database Lockouts . | . . Manual . | . . Terminals . | . . Fabricators . | . . Repair Stations . | . . Recycling Units . | . . Scanalyzers . | . . Garrison Access . | . . Terminal Hacks . | . . Fabricator Hacks . | . . Repair Station Hacks . | . . Recycling Unit Hacks . | . . Scanalyzer . | . . Garrison Access Hacks . | . . Unauthorized Hacks . | . . Terminals . | . . Fabricators . | . . Repair Stations . | . . Recycling Units . | . . Scanalyzers . | . . Garrison Access . | . . Data Cores Recovered . | . . Used . | . . Hacking Detections . | . . Full Trace Events . | . . Feedback Events . | . . Feedback Blocked . | . . Robot Schematics Acquired . | . . Robots Built . | . . Matter . | . . Time . | . . Total Robot Build Rating . | . . Part Schematics Acquired . | . . Parts Built . | . . Matter . | . . Time . | . . Total Part Build Rating . | . . Parts Repaired . | . . Time . | . . Parts Recycled . | . . Recycled Matter . | . . Retrieved Matter . | . . Retrieved Components . | . . Parts Scanalyzed . | . . Part Schematics Acquired . | . . Parts Damaged . | . . Bothacking | -11 -10 ------------ Run | Scr Mat Used RIF Installer . | . . Robots Hacked . | . . Non-combat . | . . Combat . | . . Robot Hacks Applied . | . . Relay Couplers Released . | . . Robots Rewired . | . . Allies Hacked . | . . Hacks Repelled . | . . Allies | -11 -10 -------- Run | Scr Mat Total Allies . | . . Largest Group . | . . Highest-Rated Group . | . . Highest-Rated Ally . | . . Total Orders . | . . Ally Attacks . | . . Total Damage . | . . Kills . | . . Allies Corrupted . | . . Allies Melted . | . . Intel | -11 -10 ------- Run | Scr Mat Robot Analysis Total . | . . Derelict Logs Recovered . | . . Drone Launches . | . . Drone Recoveries . | . . Exploration | -11 -10 ------------- Run | Scr Mat Turns Passed 581 | 429 152 Spaces Moved 209 | 174 35 Core 10 | 10 . Treads 199 | 164 35 Legs . | . . Wheels . | . . Hover . | . . Flight . | . . Fastest Speed 50 | 50 160 Average Speed 160 | 160 160 Slowest Speed 250 | 250 160 Overloaded Moves . | . . Propulsion Burnouts . | . . Robots Hopped . | . . Cave-ins Triggered . | . . Exploration Rate (%) 13 | 7 20 Regions Visited 1 Branch Regions . Pre-discovered Areas . | . . Known Exits Taken . | . . Unknown Exits Taken 1 | 1 . Scrap Searched . | . . Spaces Dug . | . . Terrain Destroyed 6 | 6 . Melee . | . . Projectile . | . . AOE 6 | 6 . Terrain Rammed . | . . Walls Destroyed . | . . Machines Disabled . | . . Actions | -11 -10 --------- Run | Scr Mat Total 306 | 230 76 Wait 7 | . 7 Move 208 | 173 35 Hop . | . . Pick Up 7 | 6 1 Fast Attach 6 | 6 . Attach 1 | . 1 Detach . | . . Swap . | . . Drop 1 | . 1 Fire 76 | 45 31 Melee . | . . Ram . | . . Kick . | . . Crush . | . . Escape Stasis . | . . Rewire . | . . Trap . | . . Miscellaneous . | . . Route ------- -11/Scrapyard -10/Materials History --------- Turn | Location | Event 20 | -11/Scrapyard | Discovered new exit (range 16) 430 | -11/Scrapyard | Entered Materials 431 | -10/Materials | Build established: Mutant 576 | -10/Materials | Core integrity fell below 50% 582 | -10/Materials | Core integrity fell below 20% 582 | -10/Materials | Destroyed by S-10 Pest with Light Assault Rifle Last Messages --------------- 00546_ EM Pulse Gun destroyed. 00546_ K-01 Serf collects debris. 00548_ U-05 Engineer lays Concrete. 00551_ K-01 Serf collects debris. 00553_ R-06 Scavenger collects Structural Scanner. 00555_ K-01 Serf collects debris. 00559_ R-06 Scavenger collects Terrain Scanner. 00562_ W-16 Scout sends out distress signal. 00562_ Lgt. Treads destroyed. 00566_ K-01 Serf collects debris. 00569_ Assault Rifle destroyed. 00569_ Ion Engine destroyed. 00571_ G-47 Trooper destroyed. 00573_ Lgt. Treads destroyed. 00575_ K-01 Serf collects debris. 00576_ G-34 Mercenary destroyed. 00576_ R-06 Scavenger collects Aluminum Leg. 00577_ Lgt. Assault Rifle destroyed. 00578_ G-34 Mercenary destroyed. 00578_ K-01 Serf collects debris. Map ----- +----------------------------------------------------+ | ?????????????????????????????# #???????????????? | | ?????????????????????????????# #???????????????? | | ?????????????????????????????# #???????????????? | | ?????????????????????######### ###+#########???? | | ????????????????????? # ??? | | ????????????????????? """"" # ??? | | ????????????????????# """"" # ??? | | ????????????????????# """"" # ############???? | | ????????????????????# # #??????????????? | | ????????????????????# """"" # #??????????????? | | ????????????????????# """"" + #??????????????? | | ????????????????????# """"" # #??????????????? | | ????????????????????# # #??????????????? | | ????????????????????########## ########???????? | | ??????????????+############## #???????? | | ??????????????^ k ^ #???????? | | ????????????? s ^ ! #???????? | | ????????????? s T#??????? | | ??????????????" """ ""% *%%" ^""" ##??????? | | ?????????????"" s """ """g%%%" """ #???????? | | ?????????????"T^ """= ""%r!%%" """ #???????? | | ?????????????"" |%* % + ?????? | | ????????????#"" ! #???????? | | ????????????# #???????? | | ????????????# =%=g k #???????? | | ????????????# u % @!g k###+#######???????? | | ????????????# ########### g #?????????????????? | | ?????????????????????????? #?????????????????? | | ????????????????????????? #?????????????????? | | ????????????????????????? = #?????????????????? | | ???????????????????????? !%%#?????????????????? | | ???????????????????????? =!!#?????????????????? | | ???????????????????????#!! =%#?????????????????? | | ???????????????????????#### =#?????????????????? | | ??????????????????????????# #?????????????????? | | ??????????????????????????# #?????????????????? | | ??????????????????????????? #?????????????????? | | ??????????????????????????? #?????????????????? | | ??????????????????????????? ??????????????????? | | ?????????????????????????????????????????????????? | | ?????????????????????????????????????????????????? | | ?????????????????????????????????????????????????? | | ?????????????????????????????????????????????????? | | ?????????????????????????????????????????????????? | | ?????????????????????????????????????????????????? | | ?????????????????????????????????????????????????? | | ?????????????????????????????????????????????????? | | ?????????????????????????????????????????????????? | | ?????????????????????????????????????????????????? | | ?????????????????????????????????????????????????? | +----------------------------------------------------+ Best States ------------- Heat Dissipation 25 Energy Generation 10 Energy Capacity 250 Matter Stores 300 Matter Capacity 300 Sight Range 16 Terrain Scan Density 10 Evasion (%) 40 Recoil Reduction 2 Item Schematics ----------------- None Robot Schematics ------------------ None Fabricated ------------ Nothing Alien Tech Used ----------------- None Achievements -------------- None Challenges ------------ None Game ------ Seed StealthAluminumBox Manual? 0 Play Time 00:06:04 Cumulative 38.4 hours Start 2020.10.23 @ 19:37:33 End 2020.10.23 @ 19:41:39 Sessions 1 Manual Loads 0 Difficulty Rogue Special Mode None Game No. 39 Rogue 39 Adventurer 0 Explorer 0 Win Type - Total 0 Types 0/0/0/0/0/0/0/0/0 Lore% 25 Gallery% 25 Achievement% 23 Wizard Run 0 Options --------- ASCII 0 Keyboard 0 Movement Mouse Keybinds 0 Fullscreen 1 Font 18/SmallcapsGlow Map View 76x50 Tactical HUD 1 Map Filters NONE Filters NONE Steam 1 RUN: 70f97f1a-b678-462c-ab4c-e1d0b43ad7c5